fUSD/lending_fUSD_20250211
["ID","MTS","AMOUNT","RATE_DAILY","PERIOD"]
[352693837,1739244649553,-500.0,0.00011095,2]
[352693838,1739244649563,-500.0,0.00011095,2]
[352693839,1739244649572,-500.0,0.00011095,2]
[352693840,1739244649581,-544.78,0.00011095,2]
[352693841,1739244649590,-500.0,0.00011095,2]
[352693842,1739244649600,-500.0,0.00011095,2]
[352693843,1739244649609,-550.7,0.00011095,2]
[352693844,1739244649619,-852.55,0.00011095,2]
[352693845,1739244649627,-765.1,0.00011095,2]
[352693846,1739244649637,-785.89,0.00011095,2]
[352693847,1739244649646,-500.0,0.00011095,2]
[352693848,1739244649655,-846.41,0.00011095,2]
[352693849,1739244649666,-1589.96,0.00011095,2]
[352693850,1739244649678,-500.0,0.00011095,2]
[352693851,1739244649687,-500.0,0.00011095,2]
[352693852,1739244649696,-500.0,0.00011095,2]
[352693853,1739244649705,-753.56,0.00011095,2]
[352693854,1739244649714,-500.0,0.00011095,2]
[352693855,1739244649725,-1200.61,0.00011095,2]
[352693856,1739244649734,-500.0,0.00011095,2]
[352693857,1739244649744,-1584.48,0.00011095,2]
[352693858,1739244649755,-500.0,0.00011095,2]
[352693859,1739244649764,-741.64,0.00011095,2]
[352693860,1739244649773,-750.84,0.00011095,2]
[352693861,1739244649782,-500.0,0.00011095,2]
[352693862,1739244649791,-1149.88,0.00011095,2]
[352693863,1739244649800,-497.91096649,0.00011095,2]
[352693864,1739244649809,-531.3156776,0.00011095,2]
[352693865,1739244649819,-1141.89,0.00011095,2]
[352693866,1739244649828,-828.17,0.00011095,2]
[352693867,1739244649837,-1532.72,0.00011095,2]
[352693868,1739244649846,-1847.27,0.00011095,2]
[352693869,1739244649856,-770.39,0.00011095,2]
[352693870,1739244649865,-891.46,0.00011095,2]
[352693871,1739244649874,-500.0,0.00011095,2]
[352693872,1739244649883,-1064.96,0.00011095,2]
[352693873,1739244649892,-656.46,0.00011095,2]
[352693874,1739244649900,-2102.27,0.00011095,2]
[352693875,1739244649910,-984.02,0.00011095,2]
[352693876,1739244649919,-732.33,0.00011095,2]
[352693877,1739244649928,-915.45,0.00011095,2]
[352693878,1739244649938,-641.21,0.00011095,2]
[352693879,1739244649948,-1854.15,0.00011095,2]
[352693880,1739244649957,-881.94,0.00011095,2]
[352693881,1739244649966,-1785.55,0.00011095,2]
[352693882,1739244649975,-709.08,0.00011095,2]
[352693883,1739244649985,-1367.84,0.00011095,2]
[352693884,1739244649994,-2672.86,0.00011095,2]
[352693885,1739244650003,-500.0,0.00011095,2]
[352693886,1739244650013,-500.0,0.00011095,2]
[352693887,1739244650024,-500.0,0.00011095,2]
[352693888,1739244650033,-1370.6,0.00011095,2]
[352693889,1739244650042,-500.0,0.00011095,2]
[352693890,1739244650052,-2181.52,0.00011095,2]
[352693891,1739244650061,-1563.98,0.00011095,2]
[352693892,1739244650071,-896.16,0.00011095,2]
[352693893,1739244650080,-1224.08,0.00011095,2]
[352693894,1739244650089,-1302.3,0.00011095,2]
[352693895,1739244650098,-504.87,0.00011095,2]
[352693896,1739244650107,-1455.13,0.00011095,2]
[352693897,1739244650117,-1109.76,0.00011095,2]
[352693898,1739244650126,-1579.58,0.00011095,2]
[352693899,1739244650136,-1627.58,0.00011095,2]
[352693900,1739244650145,-500.0,0.00011095,2]
[352693901,1739244650154,-2713.63,0.00011095,2]
[352693902,1739244650163,-1006.55,0.00011095,2]
[352693903,1739244650173,-1113.91,0.00011095,2]
[352693904,1739244650182,-819.37,0.00011095,2]
[352693905,1739244650191,-2949.69,0.00011095,2]
[352693906,1739244650200,-1929.18,0.00011095,2]
[352693907,1739244650209,-2242.4,0.00011095,2]
[352693908,1739244650218,-6397.89,0.00011095,2]
[352693909,1739244650227,-2014.03,0.00011095,2]
[352693910,1739244650236,-500.0,0.00011095,2]
[352693911,1739244650245,-1392.32,0.00011095,2]
[352693912,1739244650255,-2927.96,0.00011095,2]
[352693913,1739244650264,-1908.39,0.00011095,2]
[352693914,1739244650274,-1992.52,0.00011095,2]
[352693915,1739244650283,-907.35,0.00011095,2]
[352693916,1739244650292,-2481.87,0.00011095,2]
[352693917,1739244650301,-1797.41,0.00011095,2]
[352693918,1739244650311,-1424.11,0.00011095,2]
[352693919,1739244650322,-783.42,0.00011095,2]
[352693920,1739244650331,-500.0,0.00011095,2]
[352693921,1739244650340,-920.92,0.00011095,2]
[352693922,1739244650350,-2448.84,0.00011095,2]
[352693923,1739244650359,-1895.91,0.00011095,2]
[352693924,1739244650369,-1043.44,0.00011095,2]
[352693925,1739244650389,-1912.5,0.00011095,2]
[352693926,1739244650399,-500.0,0.00011095,2]
[352693927,1739244650408,-2797.35,0.00011095,2]
[352693928,1739244650418,-3113.13,0.00011095,2]
[352693929,1739244650428,-1585.47,0.00011095,2]
[352693930,1739244650437,-750.67,0.00011095,2]
[352693931,1739244650447,-1666.4,0.00011095,2]
[352693932,1739244650456,-1014.85,0.00011095,2]
[352693933,1739244650466,-500.0,0.00011095,2]
[352693934,1739244650476,-4521.01,0.00011095,2]
[352693935,1739244650485,-2093.01,0.00011095,2]
[352693936,1739244650495,-500.0,0.00011095,2]
[352693937,1739244650504,-500.0,0.00011095,2]
[352693938,1739244650513,-2414.56279799,0.00011095,2]
[352693939,1739244650786,-203.36720201,0.00011095,2]
[352693940,1739244650796,-500.0,0.00011095,2]
[352693941,1739244650805,-500.0,0.00011095,2]
[352693942,1739244650814,-189.17732799,0.00011095,2]
[352693943,1739244650838,-2940.71267201,0.00011095,2]
[352693944,1739244650848,-500.0,0.00011095,2]
[352693945,1739244650857,-1856.04,0.00011095,2]
[352693946,1739244650866,-1390.18,0.00011095,2]
[352693947,1739244650875,-1871.15,0.00011095,2]
[352693948,1739244650884,-500.0,0.00011095,2]
[352693949,1739244650893,-2175.28,0.00011095,2]
[352693950,1739244650903,-557.96,0.00011095,2]
[352693951,1739244650912,-500.0,0.00011095,2]
[352693952,1739244650922,-500.0,0.00011095,2]
[352693953,1739244650933,-1015.86,0.00011095,2]
[352693954,1739244650942,-569.89,0.00011095,2]
[352693955,1739244650951,-687.43,0.00011095,2]
[352693956,1739244650961,-633.66,0.00011095,2]
[352693957,1739244650971,-3688.94,0.00011095,2]
[352693958,1739244650980,-338.5642353,0.00011095,2]
[352693959,1739244650992,-161.4357647,0.00011095,2]
[352693960,1739244651001,-212.4252353,0.00011095,2]
[352693961,1739244651012,-2676.5747647,0.00011095,2]
[352693962,1739244651022,-500.0,0.00011095,2]
[352693963,1739244651031,-506.02,0.00011095,2]
[352693964,1739244651041,-500.0,0.00011095,2]
[352693965,1739244651051,-1075.52,0.00011095,2]
[352693966,1739244651061,-1799.46,0.00011095,2]
[352693967,1739244651071,-329.97099313,0.00011095,2]
[352693968,1739244651081,-1021.7,0.00011095,2]
[352693969,1739244651091,-1402.99,0.00011095,2]
[352693970,1739244651100,-2769.23,0.00011095,2]
[352693971,1739244651110,-2077.27,0.00011095,2]
[352693972,1739244651120,-879.27,0.00011095,2]
[352693973,1739244651130,-11582.45588457,0.00011099,2]
[352693974,1739244651139,-11582.45588457,0.00011099,2]
[352693975,1739244651149,-8812.37483655,0.00011099,2]
[352693976,1739244651161,-2733.71950069,0.00011099,2]
[352693977,1739244651175,-36.36154733,0.00011099,2]
[352693978,1739244651184,-151.36,0.00011099,2]
[352693979,1739244651193,-245.13845267,0.00011099,2]
[352693980,1739244651204,-250.40154733,0.00011099,2]
[352693981,1739244651214,-21.51845267,0.0001118,2]
[352693982,1739244651226,-360.21338972,0.0001118,2]
[352693983,1739244651235,-151.1,0.00011209,2]
[352693984,1739244651243,-571.656,0.00011209,2]
[352693985,1739244651252,-640.162,0.00011209,2]
[352693986,1739244651261,-145.40144825,0.00011209,2]
[352693987,1739244651287,-517.56214055,0.00010958,2]
[352693988,1739244651299,-191.52785945,0.00010958,2]
[352693989,1739244651309,-1688.03755175,0.00011209,2]
[352693990,1739244651319,-483.20349301,0.00011209,2]
[352693991,1739244651333,-869.04885388,0.00011209,2]
[352693992,1739244651344,-422.06000004,0.00011209,2]
[352693993,1739244651355,-1195.55665307,0.00011209,2]
[352693994,1739244651364,-1272.501,0.00011209,2]
[352693995,1739244651373,-910.69,0.00011209,2]
[352693996,1739244651382,-787.0,0.00011209,2]
[352693997,1739244651392,-541.903,0.00011209,2]
[352693998,1739244651401,-4036.804,0.00011209,2]
[352693999,1739244651410,-150.0,0.00011209,2]
[352694000,1739244651420,-793.78,0.00011209,2]
[352694001,1739244651430,-3914.0,0.00011209,2]
[352694002,1739244651439,-1279.16,0.00011209,2]
[352694003,1739244651448,-639.0,0.00011209,2]
[352694004,1739244651457,-11582.45588457,0.00011226,2]
[352694005,1739244651466,-500.0,0.00011227,2]
[352694006,1739244651475,-999.72,0.00011227,2]
[352694007,1739244651485,-306.53741179,0.00011231,2]
[352694008,1739244651494,-500.0,0.00011231,2]
[352694009,1739244651503,-500.0,0.00011231,2]
[352694010,1739244651512,-500.0,0.00011231,2]
[352694011,1739244651570,-500.0,0.00011231,2]
[352694012,1739244651580,-500.0,0.00011231,2]
[352694013,1739244651590,-500.0,0.00011231,2]
[352694014,1739244651599,-500.0,0.00011231,2]
[352694015,1739244651609,-500.0,0.00011231,2]
[352694016,1739244651617,-555.1,0.00011231,2]
[352694017,1739244651626,-161.37624289,0.00011231,2]
[352694018,1739244651635,-500.0,0.00011231,2]
[352694019,1739244651644,-362.41267608,0.00011231,2]
[352694020,1739244651653,-500.0,0.00011231,2]
[352694021,1739244651661,-500.0,0.00011231,2]
[352694022,1739244651671,-451.3020124,0.00011231,2]
[352694023,1739244651684,-500.0,0.00011231,2]
[352694024,1739244651693,-500.0,0.00011231,2]
[352694025,1739244651702,-500.0,0.00011231,2]
[352694026,1739244651711,-509.77175885,0.00011231,2]
[352694027,1739244651721,-500.0,0.00011231,2]
[352694028,1739244651730,-354.48854155,0.00011231,2]
[352694029,1739244651741,-500.0,0.00011231,2]
[352694030,1739244651751,-568.59,0.00011231,2]
[352694031,1739244651760,-500.0,0.00011231,2]
[352694032,1739244651770,-500.0,0.00011231,2]
[352694033,1739244651779,-366.0560832,0.00011231,2]
[352694034,1739244651787,-500.0,0.00011231,2]
[352694035,1739244651796,-500.0,0.00011231,2]
[352694036,1739244651805,-510.87641973,0.00011231,2]
[352694037,1739244651814,-508.83663644,0.00011231,2]
[352694038,1739244651823,-500.0,0.00011231,2]
[352694039,1739244651831,-500.0,0.00011231,2]
[352694040,1739244651840,-585.11,0.00011231,2]
[352694041,1739244651849,-537.56493582,0.00011231,2]
[352694042,1739244651858,-500.0,0.00011231,2]
[352694043,1739244651867,-500.0,0.00011231,2]
[352694044,1739244651876,-508.02172094,0.00011231,2]
[352694045,1739244651885,-514.68528127,0.00011231,2]
[352694046,1739244651893,-500.0,0.00011231,2]
[352694047,1739244651902,-500.0,0.00011231,2]
[352694048,1739244651911,-500.0,0.00011231,2]
[352694049,1739244651921,-500.0,0.00011231,2]
[352694050,1739244651930,-500.0,0.00011231,2]
[352694051,1739244651939,-500.0,0.00011231,2]
[352694052,1739244651948,-500.0,0.00011231,2]
[352694053,1739244651957,-500.0,0.00011231,2]
[352694054,1739244651966,-578.11,0.00011231,2]
[352694055,1739244651975,-500.0,0.00011231,2]
[352694056,1739244651984,-500.0,0.00011231,2]
[352694057,1739244651993,-500.0,0.00011231,2]
[352694058,1739244652002,-500.0,0.00011231,2]
[352694059,1739244652011,-500.0,0.00011231,2]
[352694060,1739244652020,-500.0,0.00011231,2]
[352694061,1739244652029,-500.0,0.00011231,2]
[352694062,1739244652038,-500.0,0.00011231,2]
[352694063,1739244652047,-999.72,0.00011231,2]
[352694064,1739244652056,-500.0,0.00011231,2]
[352694065,1739244652065,-500.0,0.00011231,2]
[352694066,1739244652073,-500.0,0.00011231,2]
[352694067,1739244652082,-500.0,0.00011231,2]
[352694068,1739244652091,-500.0,0.00011231,2]
[352694069,1739244652100,-500.0,0.00011231,2]
[352694070,1739244652110,-500.0,0.00011231,2]
[352694071,1739244652118,-500.0,0.00011231,2]
[352694072,1739244652127,-500.0,0.00011231,2]
[352694073,1739244652136,-500.0,0.00011231,2]
[352694074,1739244652145,-500.0,0.00011231,2]
[352694075,1739244652154,-500.0,0.00011231,2]
[352694076,1739244652163,-500.0,0.00011231,2]
[352694077,1739244652173,-500.0,0.00011231,2]
[352694078,1739244652183,-500.0,0.00011231,2]
[352694079,1739244652192,-526.16,0.00011231,2]
[352694080,1739244652202,-500.0,0.00011231,2]
[352694081,1739244652211,-500.0,0.00011231,2]
[352694082,1739244652221,-500.0,0.00011231,2]
[352694083,1739244652230,-500.0,0.00011231,2]
[352694084,1739244652239,-500.0,0.00011231,2]
[352694085,1739244652248,-500.0,0.00011231,2]
[352694086,1739244652257,-500.0,0.00011231,2]
[352694087,1739244652268,-500.0,0.00011231,2]
[352694088,1739244652278,-1172.85,0.00011231,2]
[352694089,1739244652286,-500.0,0.00011231,2]
[352694090,1739244652295,-937.18,0.00011231,2]
[352694091,1739244652304,-1094.47,0.00011231,2]
[352694092,1739244652313,-500.0,0.00011231,2]
[352694093,1739244652323,-500.0,0.00011231,2]
[352694094,1739244652332,-500.0,0.00011231,2]
[352694095,1739244652341,-3206.64,0.00011231,2]
[352694096,1739244652350,-500.0,0.00011231,2]
[352694097,1739244652359,-998.4,0.00011231,2]
[352694098,1739244652368,-611.79,0.00011231,2]
[352694099,1739244652378,-1340.86,0.00011231,2]
[352694100,1739244652387,-500.0,0.00011231,2]
[352694101,1739244652395,-691.25,0.00011231,2]
[352694102,1739244652404,-500.0,0.00011231,2]
[352694103,1739244652413,-1898.54,0.00011231,2]
[352694104,1739244652423,-500.0,0.00011231,2]
[352694105,1739244652432,-1483.68,0.00011231,2]
[352694106,1739244652441,-500.0,0.00011231,2]
[352694107,1739244652450,-1831.6,0.00011231,2]
[352694108,1739244652459,-500.0,0.00011231,2]
[352694109,1739244652468,-1017.66,0.00011231,2]
[352694110,1739244652476,-1275.49,0.00011231,2]
[352694111,1739244652486,-3086.28,0.00011231,2]
[352694112,1739244652495,-500.0,0.00011231,2]
[352694113,1739244652504,-4381.0,0.00011231,2]
[352694114,1739244652513,-500.0,0.00011231,2]
[352694115,1739244652522,-521.35759832,0.00011231,2]
[352694116,1739244652531,-1336.57,0.00011231,2]
[352694117,1739244652540,-633.25,0.00011231,2]
[352694118,1739244652549,-500.0,0.00011231,2]
[352694119,1739244652558,-977.98,0.00011231,2]
[352694120,1739244652578,-500.0,0.00011231,2]
[352694121,1739244652589,-529.51069476,0.00011231,2]
[352694122,1739244652598,-500.0,0.00011231,2]
[352694123,1739244652607,-500.0,0.00011231,2]
[352694124,1739244652616,-500.0,0.00011231,2]
[352694125,1739244652625,-1094.69,0.00011231,2]
[352694126,1739244652634,-2522.91,0.00011231,2]
[352694127,1739244652643,-500.0,0.00011231,2]
[352694128,1739244652652,-500.0,0.00011231,2]
[352694129,1739244652661,-504.88,0.00011231,2]
[352694130,1739244652671,-239.57194283,0.00011231,2]
[352694131,1739244652685,-500.0,0.00011231,2]
[352694132,1739244652694,-500.0,0.00011232,2]
[352694133,1739244652703,-556.03298072,0.00011232,2]
[352694134,1739244652712,-500.0,0.00011232,2]
[352694135,1739244652723,-500.0,0.00011232,2]
[352694136,1739244652731,-500.0,0.00011232,2]
[352694137,1739244652740,-500.0,0.00011232,2]
[352694138,1739244652750,-500.0,0.00011232,2]
[352694139,1739244652760,-500.0,0.00011232,2]
[352694140,1739244652769,-500.0,0.00011232,2]
[352694141,1739244652778,-1501.254,0.00011232,2]
[352694142,1739244652787,-500.0,0.00011232,2]
[352694143,1739244652796,-500.0,0.00011232,2]
[352694144,1739244652804,-500.0,0.00011232,2]
[352694145,1739244652813,-630.15,0.00011232,2]
[352694146,1739244652822,-500.0,0.00011232,2]
[352694147,1739244652831,-500.0,0.00011232,2]
[352694148,1739244652840,-500.0,0.00011232,2]
[352694149,1739244652849,-518.85,0.00011232,2]
[352694150,1739244652858,-500.0,0.00011232,2]
[352694151,1739244652867,-767.4,0.00011232,2]
[352694152,1739244652876,-675.01,0.00011232,2]
[352694153,1739244652884,-500.0,0.00011232,2]
[352694154,1739244652893,-559.09,0.00011232,2]
[352694155,1739244652903,-1082.05,0.00011232,2]
[352694156,1739244652911,-629.64,0.00011232,2]
[352694157,1739244652921,-525.34,0.00011232,2]
[352694158,1739244652930,-527.70933806,0.00011232,2]
[352694159,1739244652939,-582.38,0.00011232,2]
[352694160,1739244652948,-1012.06,0.00011232,2]
[352694161,1739244652957,-500.0,0.00011232,2]
[352694162,1739244652966,-1382.07,0.00011232,2]
[352694163,1739244652975,-833.78,0.00011232,2]
[352694164,1739244652984,-712.4,0.00011232,2]
[352694165,1739244652993,-500.0,0.00011232,2]
[352694166,1739244653002,-548.51,0.00011232,2]
[352694167,1739244653011,-500.0,0.00011232,2]
[352694168,1739244653020,-388.53628907,0.00011232,2]
[352694169,1739244653029,-728.21,0.00011232,2]
[352694170,1739244653039,-696.02,0.00011232,2]
[352694171,1739244653048,-500.0,0.00011232,2]
[352694172,1739244653057,-586.34,0.00011232,2]
[352694173,1739244653066,-782.46,0.00011232,2]
[352694174,1739244653077,-500.0,0.00011232,2]
[352694175,1739244653085,-500.0,0.00011232,2]
[352694176,1739244653094,-500.0,0.00011232,2]
[352694177,1739244653103,-776.51,0.00011232,2]
[352694178,1739244653112,-500.0,0.00011232,2]
[352694179,1739244653122,-728.88,0.00011232,2]
[352694180,1739244653131,-500.0,0.00011232,2]
[352694181,1739244653141,-500.0,0.00011232,2]
[352694182,1739244653150,-774.22,0.00011232,2]
[352694183,1739244653159,-500.0,0.00011232,2]
[352694184,1739244653168,-500.0,0.00011232,2]
[352694185,1739244653177,-604.36,0.00011232,2]
[352694186,1739244653186,-500.0,0.00011232,2]
[352694187,1739244653195,-500.0,0.00011232,2]
[352694188,1739244653204,-689.1,0.00011232,2]
[352694189,1739244653214,-500.0,0.00011232,2]
[352694190,1739244653223,-500.0,0.00011232,2]
[352694191,1739244653232,-320.76874994,0.00011232,2]
[352694192,1739244653241,-500.0,0.00011232,2]
[352694193,1739244653250,-688.83,0.00011232,2]
[352694194,1739244653259,-500.0,0.00011232,2]
[352694195,1739244653268,-871.829796,0.00011232,2]
[352694196,1739244653277,-500.0,0.00011232,2]
[352694197,1739244653287,-500.0,0.00011232,2]
[352694198,1739244653296,-799.64,0.00011232,2]
[352694199,1739244653305,-951.022489,0.00011232,2]
[352694200,1739244653315,-500.0,0.00011232,2]
[352694201,1739244653325,-940.9,0.00011232,2]
[352694202,1739244653334,-500.0,0.00011232,2]
[352694203,1739244653343,-500.0,0.00011232,2]
[352694204,1739244653352,-500.0,0.00011232,2]
[352694205,1739244653361,-569.18,0.00011232,2]
[352694206,1739244653370,-500.0,0.00011232,2]
[352694207,1739244653379,-500.0,0.00011232,2]
[352694208,1739244653388,-599.06,0.00011232,2]
[352694209,1739244653397,-803.65,0.00011232,2]
[352694210,1739244653406,-982.3,0.00011232,2]
[352694211,1739244653415,-500.0,0.00011232,2]
[352694212,1739244653424,-691.89,0.00011232,2]
[352694213,1739244653433,-500.0,0.00011232,2]
[352694214,1739244653442,-535.51,0.00011232,2]
[352694215,1739244653452,-500.0,0.00011232,2]
[352694216,1739244653461,-897.76,0.00011232,2]
[352694217,1739244653470,-963.21,0.00011232,2]
[352694218,1739244653480,-565.94,0.00011232,2]
[352694219,1739244653489,-500.0,0.00011232,2]
[352694220,1739244653499,-500.0,0.00011232,2]
[352694221,1739244653508,-803.32,0.00011232,2]
[352694222,1739244653518,-500.0,0.00011232,2]
[352694223,1739244653527,-500.0,0.00011232,2]
[352694224,1739244653537,-610.82,0.00011232,2]
[352694225,1739244653547,-513.77,0.00011232,2]
[352694226,1739244653557,-500.0,0.00011232,2]
[352694227,1739244653566,-523.43,0.00011232,2]
[352694228,1739244653575,-500.0,0.00011232,2]
[352694229,1739244653583,-500.0,0.00011232,2]
[352694230,1739244653592,-500.0,0.00011232,2]
[352694231,1739244653601,-678.02,0.00011232,2]
[352694232,1739244653610,-500.0,0.00011232,2]
[352694233,1739244653620,-500.0,0.00011232,2]
[352694234,1739244653629,-500.0,0.00011232,2]
[352694235,1739244653638,-500.0,0.00011232,2]
[352694236,1739244653647,-656.88,0.00011232,2]
[352694237,1739244653656,-500.0,0.00011232,2]
[352694238,1739244653665,-500.0,0.00011232,2]
[352694239,1739244653677,-500.0,0.00011232,2]
[352694240,1739244653687,-500.0,0.00011232,2]
[352694241,1739244653696,-976.15,0.00011232,2]
[352694242,1739244653705,-702.98,0.00011232,2]
[352694243,1739244653714,-500.0,0.00011232,2]
[352694244,1739244653724,-850.92,0.00011232,2]
[352694245,1739244653733,-635.04,0.00011232,2]
[352694246,1739244653742,-703.31,0.00011232,2]
[352694247,1739244653752,-500.0,0.00011232,2]
[352694248,1739244653761,-552.63,0.00011232,2]
[352694249,1739244653771,-500.0,0.00011232,2]
[352694250,1739244653779,-500.0,0.00011232,2]
[352694251,1739244653789,-500.0,0.00011232,2]
[352694252,1739244653798,-382.58,0.00011232,2]
[352694253,1739244653807,-544.78,0.00011232,2]
[352694254,1739244653816,-509.84769725,0.00011232,2]
[352694255,1739244653825,-500.0,0.00011232,2]
[352694256,1739244653834,-550.7,0.00011232,2]
[352694257,1739244653843,-852.55,0.00011232,2]
[352694258,1739244653852,-765.1,0.00011232,2]
[352694259,1739244653861,-785.89,0.00011232,2]
[352694260,1739244653871,-500.0,0.00011232,2]
[352694261,1739244653880,-846.41,0.00011232,2]
[352694262,1739244653889,-1589.96,0.00011232,2]
[352694263,1739244653898,-500.0,0.00011232,2]
[352694264,1739244653907,-500.0,0.00011232,2]
[352694265,1739244653916,-500.0,0.00011232,2]
[352694266,1739244653926,-753.56,0.00011232,2]
[352694267,1739244653935,-500.0,0.00011232,2]
[352694268,1739244653944,-1200.61,0.00011232,2]
[352694269,1739244653953,-500.0,0.00011232,2]
[352694270,1739244653962,-1584.48,0.00011232,2]
[352694271,1739244653971,-500.0,0.00011232,2]
[352694272,1739244653981,-741.64,0.00011232,2]
[352694273,1739244653990,-750.84,0.00011232,2]
[352694274,1739244653999,-500.0,0.00011232,2]
[352694275,1739244654009,-1149.88,0.00011232,2]
[352694276,1739244654018,-1141.89,0.00011232,2]
[352694277,1739244654027,-828.17,0.00011232,2]
[352694278,1739244654036,-1532.72,0.00011232,2]
[352694279,1739244654045,-1847.27,0.00011232,2]
[352694280,1739244654054,-770.39,0.00011232,2]
[352694281,1739244654063,-891.46,0.00011232,2]
[352694282,1739244654072,-587.08567513,0.00011232,2]
[352694283,1739244654082,-1064.96,0.00011232,2]
[352694284,1739244654091,-656.46,0.00011232,2]
[352694285,1739244654100,-984.02,0.00011232,2]
[352694286,1739244654109,-2102.27,0.00011232,2]
[352694287,1739244654119,-732.33,0.00011232,2]
[352694288,1739244654128,-915.45,0.00011232,2]
[352694289,1739244654137,-641.21,0.00011232,2]
[352694290,1739244654146,-1854.15,0.00011232,2]
[352694291,1739244654155,-881.94,0.00011232,2]
[352694292,1739244654165,-941.27057704,0.00011232,2]
[352694293,1739244654705,-494.35,0.0001,2]
[352694294,1739244654715,-502.31884108,0.00010958,2]
[352694295,1739244654725,-69.16281401,0.00010958,2]
[352694296,1739244654736,-430.83718599,0.00010958,2]
[352694297,1739244654746,-500.0,0.00010958,2]
[352694298,1739244654756,-709.09,0.00011095,2]
[352694299,1739244654765,-500.0,0.00011095,2]
[352694300,1739244654775,-500.0,0.00011095,2]
[352694301,1739244654784,-109.30952304,0.00011209,2]
[352694302,1739244654839,-1921.42647696,0.00011209,2]
[352694303,1739244654849,-844.27942296,0.00011232,2]
[352694304,1739244654860,-709.08,0.00011232,2]
[352694305,1739244654870,-1367.84,0.00011232,2]
[352694306,1739244654880,-2672.86,0.00011232,2]
[352694307,1739244654890,-500.0,0.00011232,2]
[352694308,1739244654899,-500.0,0.00011232,2]
[352694309,1739244654909,-500.0,0.00011232,2]
[352694310,1739244654919,-1370.6,0.00011232,2]
[352694311,1739244654929,-500.0,0.00011232,2]
[352694312,1739244654939,-2181.52,0.00011232,2]
[352694313,1739244654949,-1563.98,0.00011232,2]
[352694314,1739244654959,-896.16,0.00011232,2]
[352694315,1739244654968,-1224.08,0.00011232,2]
[352694316,1739244654978,-1302.3,0.00011232,2]
[352694317,1739244654987,-504.87,0.00011232,2]
[352694318,1739244654997,-1455.13,0.00011232,2]
[352694319,1739244655007,-1109.76,0.00011232,2]
[352694320,1739244655016,-1579.58,0.00011232,2]
[352694321,1739244655026,-1627.58,0.00011232,2]
[352694322,1739244655035,-500.0,0.00011232,2]
[352694323,1739244655045,-2713.63,0.00011232,2]
[352694324,1739244655054,-205.32410008,0.00011232,2]
[352694325,1739244655067,-469.76278846,0.00011232,2]
[352694326,1739244655127,-331.46311146,0.00011232,2]
[352694327,1739244655137,-1113.91,0.00011232,2]
[352694328,1739244655146,-819.37,0.00011232,2]
[352694329,1739244655156,-2949.69,0.00011232,2]
[352694330,1739244655166,-1929.18,0.00011232,2]
[352694331,1739244655176,-2242.4,0.00011232,2]
[352694332,1739244655185,-6397.89,0.00011232,2]
[352694333,1739244655195,-2014.03,0.00011232,2]
[352694334,1739244655204,-500.0,0.00011232,2]
[352694335,1739244655214,-1392.32,0.00011232,2]
[352694336,1739244655223,-994.3826254,0.00011232,2]